[Event "DVM U20 2019"]
[Site "Braunschweig"]
[Date "2019.12.28"]
[Round "3"]
[White "Weller, Uli"]
[Black "Poghosyan, Tigran"]
[Result "0-1"]
[ECO "B24"]
[WhiteElo "2070"]
[BlackElo "2302"]
[Annotator "RC"]
[PlyCount "83"]
[EventDate "2019.12.27"]
[EventType "team-tourn"]
[EventRounds "7"]
[EventCountry "GER"]
[SourceTitle "playchess.com"]
[Source "ChessBase"]
[SourceQuality "1"]
[WhiteTeam "SF Augsburg"]
[BlackTeam "Lübecker SV"]
[TimeControl "40/5400+30:1800+30"]

1. e4 {[%emt 0:00:00]} c5 {[%emt 0:00:51]} 2. Nc3 {[%emt 0:00:00]} Nc6 {[%emt 0:00:04]} 3. g3 {[%emt 0:00:00]} g6 {[%emt 0:00:16]} 4. d3 {[%emt 0:00:19]} Bg7 {[%emt 0:01:04]} 5. Be3 {[%emt 0:00:22]} d6 {[%emt 0:00:59]} 6. Qd2 {[%emt 0:00:32]} Rb8 {[%emt 0:00:43]} 7. Bg2 {[%emt 0:00:19]} b5 {[%emt 0:00:44]} 8. f4 {[%emt 0:00:44]} b4 {[%emt 0:00:37]} 9. Nd1 {[%emt 0:00:11]} Nd4 {[%emt 0:01:02]} 10. c3 {[%emt 0:21:36]} bxc3 {[%emt 0:02:24]} 11. bxc3 {[%emt 0:00:30]} Nc6 {[%emt 0:02:51]} 12. Ne2 {[%emt 0:00:43]} e6 {[%emt 0:03:52]} 13. O-O {[%emt 0:00:56]} Nge7 {[%emt 0:01:39]} 14. g4 {[%emt 0:08:49]} f5 {[%emt 0:11:03]} 15. gxf5 {[%emt 0:03:02]} exf5 {[%emt 0:07:49]} 16. Ng3 O-O 17. exf5 {[%emt 0:07:14]} Bxf5 {[%emt 0:08:22]} 18. Nxf5 {[%emt 0:00:44]} Rxf5 {[%emt 0:00:06]} 19. Qe2 {[%emt 0:17:13]} Qc7 {[%emt 0:13:12]} 20. Bd2 {[%emt 0:01:52]} Re8 {[%emt 0:05:21]} 21. Ne3 {[%emt 0:01:18]} Rff8 {[%emt 0:02:16]} 22. Qf3 {[%emt 0:03:46]} Kh8 {[%emt 0:01:45]} 23. Rab1 {[%emt 0:09:09]} Qa5 {[%emt 0:04:07]} 24. Nc4 {[%emt 0:00:43]} Qc7 {[%emt 0:00:15]} 25. Ne3 {[%emt 0:06:37]} Qa5 {[%emt 0:05:59]} 26. Qd1 {[%emt 0:03:00]} Bxc3 {[%emt 0:01:49]} 27. Rb5 {[%emt 0:05:21]} Qxb5 {[%emt 0:05:51]} 28. Bxc3+ {[%emt 0:00:02]} Nd4 {[%emt 0:00:01]} 29. f5 {[%emt 0:01:45]} Nexf5 {[%emt 0:01:32]} 30. Nxf5 {[%emt 0:00:25]} gxf5 {[%emt 0:02:49]} 31. Rf4 {[%emt 0:01:01]} Re3 {[%emt 0:02:11]} 32. Rh4 {[%emt 0:00:38]} Qxd3 {[%emt 0:03:47]} 33. Bxd4+ {[%emt 0:01:22]} cxd4 {[%emt 0:00:07]} 34. Rxh7+ {[%emt 0:00:14]} Kxh7 {[%emt 0:00:04]} 35. Qh5+ {[%emt 0:00:08]} Kg7 {[%emt 0:00:03]} 36. Qg5+ {[%emt 0:00:06]} Kf7 {[%emt 0:00:36]} 37. Bd5+ {[%emt 0:00:17]} Re6 {[%emt 0:00:31]} 38. Bxe6+ {[%emt 0:00:43]} Kxe6 {[%emt 0:00:01]} 39. Qg6+ {[%emt 0:00:23]} Rf6 {[%emt 0:00:29]} 40. Qe8+ {[%emt 0:00:20]} Kd5 {[%emt 0:00:04]} 41. Qa8+ {[%emt 0:30:18]} Ke5 {[%emt 0:30:07]} 42. Qe8+ {[%emt 0:00:09] normal} 0-1

[Event "DVM U20 2019"]
[Site "Braunschweig"]
[Date "2019.12.28"]
[Round "3"]
[White "Dechant, Georg"]
[Black "Dornieden, Jonas"]
[Result "0-1"]
[ECO "B12"]
[WhiteElo "2065"]
[BlackElo "1912"]
[Annotator "NA RC"]
[PlyCount "98"]
[EventDate "2019.12.27"]
[EventType "team-tourn"]
[EventRounds "7"]
[EventCountry "GER"]
[SourceTitle "playchess.com"]
[Source "ChessBase"]
[SourceQuality "1"]
[WhiteTeam "SC Bavaria Regensburg"]
[BlackTeam "SK Lehrte 1919"]
[TimeControl "40/5400+30:1800+30"]

1. e4 {[%emt 0:00:00]} c6 {[%emt 0:00:00]} 2. d4 {[%emt 0:00:00]} d5 {[%emt 0:00:00]} 3. e5 {[%emt 0:00:00]} Bf5 {[%emt 0:00:00]} 4. Nf3 {[%emt 0:00:00]} e6 {[%emt 0:00:00]} 5. Be2 {[%emt 0:00:00]} c5 {[%emt 0:00:00]} 6. O-O {[%emt 0:00:39]} Nc6 {[%emt 0:00:00]} 7. Be3 {[%emt 0:00:56] unterminated} Qb6 {[%emt 0:03:10] unterminated} 8. Nc3 {[%emt 0:03:00] unterminated B12: Caro-Kann: Advance Variation} Qxb2 {[%emt 0:04:41]} 9. Nb5 {[%emt 0:00:07]} (9. Qe1 cxd4 10. Bxd4 Nxd4 11. Nxd4 Bb4 12. Ndb5 Ba5 13. Rb1 Qxc2 14. Rb3 Ne7 15. Nd6+ Kf8 16. Nxb7 {0-1 (52) Jakovenko,D (2704)-Inarkiev,E (2682) Izhevsk 2019}) 9... c4 {[%emt 0:00:41] unterminated} 10. Nc7+ {[%emt 0:32:24] Double Attack} Kd7 {[%emt 0:02:12]} 11. Nxa8 {[%emt 0:00:25]} Bxc2 {[%emt 0:00:33]} 12. Qc1 {[%emt 0:00:45] unterminated} Ba3 {[%emt 0:00:39] unterminated} 13. Ne1 $1 {[%emt 0:02:20] unterminated} Bg6 {[%emt 0:08:26] unterminated} 14. Qd1 $1 {[%emt 0:00:53] unterminated} b5 $146 {[%emt 0:14:56] unterminated} ({Predecessor:} 14... Kc8 15. g4 h5 16. gxh5 {0-1 (44) Sun,F (2134)-Guo,Q (2439) China 2013}) 15. h4 {[%emt 0:07:53] unterminated} h5 {[%emt 0:05:19] unterminated} 16. Bd3 {[%emt 0:01:55] unterminated} cxd3 {[%emt 0:09:54]} 17. Rb1 {[%emt 0:00:05] unterminated} Qe2 {[%emt 0:09:50]} ({And not} 17... Qxa2 18. Rxb5 Nge7 19. Rb7+ Kc8 20. Rc7+ Kb8 {[#]} 21. Qa4 $1 $11 {[%mdl 512]}) 18. Qb3 {[%emt 0:00:10] unterminated} b4 {[%emt 0:00:58] unterminated} 19. Rd1 {[%emt 0:08:35] unterminated} Nge7 {[%emt 0:05:03] unterminated} 20. Qa4 {[%emt 0:16:11] unterminated} Rxa8 {[%emt 0:02:39] unterminated} 21. Bg5 {[%emt 0:06:46] unterminated} Nc8 {[%emt 0:06:45] unterminated} 22. Rd2 {[%emt 0:03:58] unterminated} Qg4 {[%emt 0:08:40] unterminated} 23. Qb5 $2 {[%emt 0:02:38] unterminated} (23. Nxd3 $17 {was the crucial defense.} Bxd3 24. Rxd3) 23... Rb8 {[%emt 0:01:35] unterminated} 24. Qc5 {[%emt 0:01:55] unterminated} Qxd4 {[%emt 0:01:12]} 25. Qf8 {[%emt 0:00:04] unterminated} N8e7 {[%emt 0:05:10]} 26. Qxg7 {[%emt 0:00:09] unterminated} Rg8 {[%emt 0:00:40]} 27. Qf6 {[%emt 0:00:56] unterminated} Qxe5 {[%emt 0:01:38]} 28. Qf3 {[%emt 0:00:32] unterminated} Nd4 {[%emt 0:05:10]} 29. Qh3 {[%emt 0:00:14]} Ne2+ {[%emt 0:01:05] unterminated} 30. Kh1 {[%emt 0:00:04]} f6 {[%emt 0:00:53]} 31. Nxd3 {[%emt 0:00:57] unterminated} Bxd3 {[%emt 0:01:19] unterminated} 32. Qxd3 {[%emt 0:00:20]} Nc3 {[%emt 0:00:22] unterminated} 33. Bh6 {[%emt 0:05:10] unterminated} Qe4 {[%emt 0:00:37]} 34. Qh3 {[%emt 0:00:05] unterminated} Nf5 {[%emt 0:00:48] Double Attack} 35. Be3 {[%emt 0:01:52]} Qxh4 {[%emt 0:01:04]} 36. Qxh4 {[%emt 0:00:33]} Nxh4 {[%emt 0:00:04]} 37. Bxa7 {[%emt 0:00:09]} Rxg2 {[%emt 0:01:13]} 38. Bd4 {[%emt 0:00:25]} Rh2+ {[%emt 0:00:22]} 39. Kxh2 {[%emt 0:00:08]} Nf3+ {[%emt 0:00:04]} 40. Kh3 {[%emt 0:00:09]} Nxd2 {[%emt 0:00:09]} 41. Rg1 {[%emt 0:30:07]} e5 {[%emt 0:30:33] normal} 42. Bc5 {[%emt 0:01:46]} Nde4 {[%emt 0:00:31] normal} 43. Rg7+ $19 {[%emt 0:00:31]} Ke6 {[%emt 0:00:30]} 44. Bf8 {[%emt 0:00:06]} Nxf2+ {[%emt 0:00:59]} 45. Kh4 {[%emt 0:00:03]} d4 {[%emt 0:00:45]} 46. Kxh5 {[%emt 0:00:51]} d3 {[%emt 0:00:26]} 47. Re7+ {[%emt 0:00:18]} Kf5 {[%emt 0:00:10]} 48. Rd7 {[%emt 0:00:15]} Ke4 {[%emt 0:00:07]} 49. Bc5 {[%emt 0:00:54]} Nd5 {[%emt 0:00:17] normal} 0-1

[Event "DVM U20 2019"]
[Site "Braunschweig"]
[Date "2019.12.28"]
[Round "3"]
[White "Reimer, Philip"]
[Black "Oberhofer, Cedric"]
[Result "0-1"]
[ECO "B32"]
[WhiteElo "2065"]
[BlackElo "2260"]
[Annotator "RC"]
[PlyCount "58"]
[EventDate "2019.12.27"]
[EventType "team-tourn"]
[EventRounds "7"]
[EventCountry "GER"]
[SourceTitle "playchess.com"]
[Source "ChessBase"]
[SourceQuality "1"]
[WhiteTeam "SK Lehrte 1919"]
[BlackTeam "SC Bavaria Regensburg"]
[TimeControl "40/5400+30:1800+30"]

1. e4 {[%emt 0:00:00]} c5 {[%emt 0:00:00]} 2. Nf3 {[%emt 0:00:00]} Nc6 {[%emt 0:00:00]} 3. d4 {[%emt 0:00:00]} cxd4 {[%emt 0:00:00]} 4. Nxd4 {[%emt 0:00:00]} Qb6 {[%emt 0:00:01]} 5. Nb3 {[%emt 0:00:00]} Nf6 {[%emt 0:00:08]} 6. Nc3 {[%emt 0:00:21]} e6 {[%emt 0:00:12]} 7. Be3 {[%emt 0:00:40]} Qc7 {[%emt 0:00:07]} 8. a3 {[%emt 0:01:24]} a6 {[%emt 0:00:28]} 9. Be2 {[%emt 0:03:04]} Be7 {[%emt 0:01:24]} 10. O-O {[%emt 0:00:36]} O-O {[%emt 0:01:05]} 11. f4 {[%emt 0:14:44]} d6 {[%emt 0:01:00]} 12. Kh1 {[%emt 0:07:13]} b5 {[%emt 0:02:51]} 13. Qe1 {[%emt 0:06:31]} Rb8 {[%emt 0:07:37]} 14. Qf2 {[%emt 0:03:33]} Nd7 {[%emt 0:10:33]} 15. Rad1 {[%emt 0:14:22]} Nb6 {[%emt 0:05:13]} 16. Bc1 {[%emt 0:13:58]} b4 {[%emt 0:14:53]} 17. axb4 {[%emt 0:00:19]} Nxb4 {[%emt 0:00:09]} 18. Bf3 {[%emt 0:06:15]} Bd7 {[%emt 0:03:27]} 19. Rfe1 {[%emt 0:08:01]} Na4 {[%emt 0:07:31]} 20. e5 {[%emt 0:02:13]} dxe5 {[%emt 0:02:18]} 21. fxe5 {[%emt 0:01:59]} Nxc3 {[%emt 0:01:07]} 22. bxc3 {[%emt 0:00:04]} Na2 {[%emt 0:00:16]} 23. Bd2 {[%emt 0:06:08]} Bb5 {[%emt 0:03:43]} 24. Qg3 {[%emt 0:05:14]} Rfd8 {[%emt 0:03:44]} 25. Be4 {[%emt 0:00:31]} Rbc8 {[%emt 0:02:22]} 26. Re3 {[%emt 0:04:00]} Nxc3 {[%emt 0:05:31] normal} 27. Rxc3 {[%emt 0:00:29]} Rxd2 {[%emt 0:00:11] normal} 28. Rxd2 {[%emt 0:01:03]} Qxc3 {[%emt 0:00:06]} 29. Qf4 {[%emt 0:00:51] normal} Qxb3 {[%emt 0:03:22] normal} 0-1

[Event "DVM U20 2019"]
[Site "Braunschweig"]
[Date "2019.12.28"]
[Round "3"]
[White "Hoffmann, Lennard"]
[Black "Eurich, Alexander"]
[Result "1-0"]
[ECO "B27"]
[WhiteElo "2059"]
[BlackElo "1741"]
[Annotator "NA RC"]
[PlyCount "69"]
[EventDate "2019.12.27"]
[EventType "team-tourn"]
[EventRounds "7"]
[EventCountry "GER"]
[SourceTitle "playchess.com"]
[Source "ChessBase"]
[SourceQuality "1"]
[WhiteTeam "SG Aufbau Elbe Magdeburg"]
[BlackTeam "SF HN-Biberach"]
[TimeControl "40/5400+30:1800+30"]

1. e4 {[%emt 0:00:00]} c5 {[%emt 0:00:00]} 2. Nf3 {[%emt 0:00:00]} g6 {[%emt 0:00:24]} 3. d4 {[%emt 0:01:51]} cxd4 {[%emt 0:00:09]} 4. Qxd4 {[%emt 0:01:22]} Nf6 {[%emt 0:01:01] unterminated} 5. e5 {[%emt 0:28:11] unterminated} Nc6 {[%emt 0:03:57] unterminated} 6. Qc4 {[%emt 0:03:59] unterminated unterminated. B27: Sicilian: 2 Nf3, unusual Black 2nd moves} (6. Qa4 Nd5 7. Qe4 Nb6 8. Nc3 Bg7 9. Bf4 d5 10. exd6 Bf5 11. dxe7 Qd7 12. Qe3 Nb4 13. Rc1 Nxc2+ 14. Rxc2 Bxc2 15. Bb5 Bxc3+ 16. Qxc3 Qxb5 17. Qxh8+ Kxe7 {½-½ (22) Ortiz Suarez,I (2548)-Guseinov,G (2654) Barbera del Valles 2018}) 6... d5 {unterminated} 7. exd6 {[%emt 0:02:19] unterminated} Qxd6 {[%emt 0:10:17] unterminated} 8. Bf4 {[%emt 0:05:58] unterminated} Qe6+ {[%emt 0:06:50] unterminated} (8... e5 $5 {[%cal Re5f4]} 9. Bg5 Be6 $15) 9. Be2 $146 {[%emt 0:04:02] unterminated} ({Predecessor:} 9. Qxe6 Bxe6 10. Nc3 Nd5 11. Bd2 Nxc3 12. Bxc3 f6 13. O-O-O Bh6+ {0-1 (50) Rigo,J (2321)-Machalova,M (2206) Banska Stiavnica 2010}) 9... Bg7 {[%emt 0:09:11] unterminated} 10. Nc3 {[%emt 0:11:44] unterminated} O-O {[%emt 0:09:00] unterminated} 11. h3 {[%emt 0:06:17] unterminated} Qxc4 {[%emt 0:07:35]} 12. Bxc4 {[%emt 0:00:08] unterminated} Bf5 {[%emt 0:02:11] unterminated} 13. O-O-O {[%emt 0:04:02] unterminated} Na5 {[%emt 0:05:37] unterminated} 14. Bd3 {[%emt 0:03:15] unterminated} Bxd3 {[%emt 0:02:51]} 15. Rxd3 {[%emt 0:00:24]} Nc6 {[%emt 0:00:34] unterminated} 16. Rhd1 {[%emt 0:01:19] unterminated} Rfd8 {[%emt 0:01:22] unterminated} 17. Ne5 {[%emt 0:01:59] unterminated} Rxd3 {[%emt 0:06:21] unterminated} 18. Nxd3 {[%emt 0:06:59] unterminated} Rd8 {[%emt 0:00:51] unterminated} 19. Be3 {[%emt 0:01:57] unterminated} Nd5 {[%emt 0:07:23]} 20. Nxd5 {[%emt 0:00:35] unterminated} Rxd5 {[%emt 0:00:13]} 21. c4 {[%emt 0:00:56] unterminated} Rd8 {[%emt 0:02:25] unterminated} 22. b4 {[%emt 0:02:13] unterminated} b6 {[%emt 0:05:06] unterminated} 23. c5 {[%emt 0:02:41] unterminated} b5 $11 {[%emt 0:03:25]} 24. Kc2 {[%emt 0:02:12]} f5 {[%emt 0:02:11]} 25. f4 {[%emt 0:03:06]} e5 {[%emt 0:05:46]} 26. fxe5 {[%emt 0:01:26]} Bxe5 {[%emt 0:01:55]} 27. Nxe5 {[%emt 0:01:33]} Nxb4+ {[%emt 0:00:10]} 28. Kb3 {[%emt 0:00:30]} Rxd1 {[%emt 0:01:40]} 29. Kxb4 {[%emt 0:00:07]} Re1 {[%emt 0:01:34]} 30. c6 {[%emt 0:03:17]} Rxe3 {[%emt 0:01:15]} 31. c7 {[%emt 0:00:06]} Re4+ {[%emt 0:00:14]} 32. Ka5 {[%emt 0:00:14] normal} Rxe5 {[%emt 0:01:29]} 33. c8=Q+ {[%emt 0:00:08]} Kf7 {[%emt 0:00:11] normal} 34. Qh8 {[%emt 0:00:26]} Ke6 {[%emt 0:00:30]} 35. Qxh7 {[%emt 0:00:17] normal} 1-0

[Event "DVM U20 2019"]
[Site "Braunschweig"]
[Date "2019.12.28"]
[Round "3"]
[White "Elier, Ali"]
[Black "Fuhrmann, Aeke"]
[Result "1-0"]
[ECO "B21"]
[WhiteElo "2032"]
[BlackElo "1879"]
[Annotator "NA RC"]
[PlyCount "101"]
[EventDate "2019.12.27"]
[EventType "team-tourn"]
[EventRounds "7"]
[EventCountry "GER"]
[SourceTitle "playchess.com"]
[Source "ChessBase"]
[SourceQuality "1"]
[WhiteTeam "SF Brackel"]
[BlackTeam "Hamburger SK"]
[TimeControl "40/5400+30:1800+30"]

1. e4 {[%emt 0:00:00]} c5 {[%emt 0:00:00]} 2. d4 {[%emt 0:00:00]} cxd4 {[%emt 0:00:10]} 3. c3 {[%emt 0:00:02]} Nf6 {[%emt 0:00:25]} 4. e5 {[%emt 0:00:05]} Nd5 {[%emt 0:00:08]} 5. Nf3 {[%emt 0:00:05]} Nc6 {[%emt 0:00:25]} 6. Bc4 {[%emt 0:00:05]} Nb6 {[%emt 0:00:51]} 7. Bb3 {[%emt 0:00:05]} d5 {[%emt 0:00:39]} 8. exd6 {[%emt 0:00:06]} Qxd6 {[%emt 0:00:05]} 9. Na3 {[%emt 0:00:07]} a6 {[%emt 0:00:12]} 10. cxd4 {[%emt 0:00:24] unterminated} Be6 {[%emt 0:20:51] unterminated unterminated. B22: Sicilian: 2 c3} (10... e6 11. O-O Be7 12. Be3 O-O 13. Ne5 Nb4 14. Rc1 N4d5 15. Nac4 Nxc4 16. Nxc4 Qd8 17. Ne5 Bf6 18. Qf3 Rb8 19. Ng4 Bh4 20. Nh6+ gxh6 21. Bxh6 f5 22. Bxd5 exd5 23. Bxf8 Kxf8 24. Rfe1 Bd7 25. Qxd5 {1-0 (33) Gashimov,V (2565)-Halkias,S (2541) Antalya 2004}) 11. O-O {[%emt 0:02:19] unterminated} Bxb3 {[%emt 0:04:10]} 12. Qxb3 {[%emt 0:00:54]} Qb4 {[%emt 0:00:15] unterminated} 13. Qd3 {[%emt 0:03:46] unterminated} e6 {[%emt 0:01:56] unterminated} 14. Bd2 {[%emt 0:02:17] unterminated} Qd6 {[%emt 0:04:44] unterminated} 15. Qb3 $146 {[%emt 0:14:18] unterminated} ({Predecessor:} 15. Rfe1 Qd5 16. Nc2 Be7 17. Ne3 Qb5 18. Qe4 {1-0 (46) Castaneda,J (2175)-Cano,L (2272) Medellin 2017}) 15... Nb4 {[%emt 0:04:13] unterminated} ({Not} 15... Nxd4 $2 16. Nxd4 Qxd4 17. Be3 $18) 16. Rac1 {[%emt 0:00:57] unterminated} N4d5 {[%emt 0:03:05]} 17. Ne5 {[%emt 0:02:12] unterminated} (17. Ng5 $5 {[%cal Ra3c4]} Be7 18. Ne4 $14) 17... Be7 {[%emt 0:02:48] unterminated} 18. Nac4 {[%emt 0:13:41]} Nxc4 {[%emt 0:01:00] unterminated} 19. Nxc4 {[%emt 0:03:10] unterminated} Qd7 {[%emt 0:01:37] unterminated} 20. Nb6 {[%emt 0:14:56]} Nxb6 {[%emt 0:00:11]} 21. Qxb6 {[%emt 0:00:04]} O-O {[%emt 0:00:42]} 22. Rc7 {[%emt 0:04:45]} Bd8 {[%emt 0:02:12]} 23. Rxd7 {[%emt 0:00:26]} Bxb6 {[%emt 0:00:09]} 24. Rxb7 {[%emt 0:10:48]} Bxd4 {[%emt 0:00:15]} 25. b4 {[%emt 0:06:01]} Rfc8 {[%emt 0:02:30]} 26. Be3 {[%emt 0:03:13]} Bxe3 {[%emt 0:03:07]} 27. fxe3 {[%emt 0:00:04]} f6 {[%emt 0:00:15]} 28. Rd1 {[%emt 0:00:40]} Rd8 {[%emt 0:00:12]} 29. Rxd8+ {[%emt 0:04:52]} Rxd8 {[%emt 0:00:10]} 30. Ra7 {[%emt 0:00:56]} Rd6 {[%emt 0:07:47]} 31. Kf2 {[%emt 0:00:13]} h5 {[%emt 0:00:45]} 32. Ke2 {[%emt 0:00:17]} Kh7 {[%emt 0:01:57]} 33. Rb7 {[%emt 0:01:40]} Kg6 {[%emt 0:02:02]} 34. a4 {[%emt 0:00:05]} Kf5 {[%emt 0:00:32]} 35. a5 {[%emt 0:00:57]} g5 {[%emt 0:00:38]} 36. Rb6 {[%emt 0:00:09]} Ke5 {[%emt 0:00:07]} 37. b5 {[%emt 0:01:28]} axb5 {[%emt 0:00:48]} 38. Rxb5+ {[%emt 0:00:04]} Rd5 {[%emt 0:00:09]} 39. Rxd5+ {[%emt 0:00:16]} Kxd5 {[%emt 0:00:05] unterminated} 40. Kd3 {[%emt 0:00:39] unterminated} Kc5 {[%emt 0:05:20]} 41. e4 $11 {[%emt 0:30:33]} ({White should play} 41. Ke4 $18 Kb5 42. Kd4) 41... Kb5 {[%emt 0:30:21]} 42. Kd4 {[%emt 0:00:05]} Kxa5 {[%emt 0:03:18]} 43. Kc5 {[%emt 0:00:05]} f5 {[%emt 0:00:11]} 44. exf5 {[%emt 0:00:13]} exf5 {[%emt 0:00:05]} 45. Kd5 {[%emt 0:00:09]} f4 {[%emt 0:00:07]} 46. Ke5 {[%emt 0:00:11]} f3 {[%emt 0:00:11]} 47. gxf3 {[%emt 0:00:04]} g4 {[%emt 0:00:06]} 48. fxg4 {[%emt 0:00:40]} hxg4 {[%emt 0:00:05]} 49. Kf4 {[%emt 0:00:03]} Kb5 {[%emt 0:00:52]} 50. Kxg4 {[%emt 0:00:04]} Kc6 {[%emt 0:00:03]} 51. Kf5 {[%emt 0:00:08] normal} 1-0

[Event "DVM U20 2019"]
[Site "Braunschweig"]
[Date "2019.12.28"]
[Round "3"]
[White "Wiegersma, Justus"]
[Black "Richter, Philipp"]
[Result "0-1"]
[ECO "C15"]
[WhiteElo "1975"]
[BlackElo "2084"]
[Annotator "NA RC"]
[PlyCount "48"]
[EventDate "2019.12.27"]
[EventType "team-tourn"]
[EventRounds "7"]
[EventCountry "GER"]
[SourceTitle "playchess.com"]
[Source "ChessBase"]
[SourceQuality "1"]
[WhiteTeam "SK Turm Kleve"]
[BlackTeam "USV TU Dresden"]
[TimeControl "40/5400+30:1800+30"]

1. e4 {[%emt 0:00:00]} e6 {[%emt 0:00:00]} 2. d4 {[%emt 0:00:00]} d5 {[%emt 0:00:00]} 3. Nc3 {[%emt 0:00:00]} Bb4 {[%emt 0:00:00]} 4. Nge2 {[%emt 0:00:00]} dxe4 {[%emt 0:00:01]} 5. a3 {[%emt 0:00:00]} Be7 {[%emt 0:00:05]} 6. Nxe4 {[%emt 0:00:14]} Nf6 {[%emt 0:00:05]} 7. Nxf6+ {[%emt 0:00:49]} Bxf6 {[%emt 0:00:09]} 8. Be3 {[%emt 0:00:04] unterminated} b6 {[%emt 0:05:08] unterminated} 9. Qd2 {[%emt 0:01:59] unterminated} Bb7 {[%emt 0:01:52]} 10. O-O-O {[%emt 0:00:12] unterminated} O-O {[%emt 0:04:32] unterminated} 11. Rg1 {[%emt 0:06:10] unterminated} Na6 {[%emt 0:08:25] unterminated} 12. Nf4 {[%emt 0:03:51] unterminated} Rc8 {[%emt 0:11:12] unterminated} 13. g4 {[%emt 0:02:05] unterminated} c5 $11 {[%emt 0:08:02]} 14. d5 {[%emt 0:01:32]} Nc7 {[%emt 0:04:45]} 15. Bg2 {[%emt 0:10:58]} exd5 {[%emt 0:04:15]} 16. Nxd5 {[%emt 0:00:06]} Nxd5 {[%emt 0:00:40]} 17. Bxd5 {[%emt 0:00:08]} Bxd5 {[%emt 0:02:56]} 18. Qxd5 {[%emt 0:00:02]} Qc7 {[%emt 0:03:29]} 19. f4 {[%emt 0:12:26]} Rfe8 {[%emt 0:01:06]} 20. Qf3 {[%emt 0:01:05]} g6 {[%emt 0:16:44]} 21. Rge1 {[%emt 0:01:40]} Rcd8 {[%emt 0:05:32]} 22. Rxd8 {[%emt 0:00:55]} Qxd8 {[%emt 0:00:41] normal} 23. Kb1 {[%emt 0:12:08] normal} Qd7 {[%emt 0:02:28] normal} 24. h3 {[%emt 0:01:00]} Qb5 {[%emt 0:00:12] normal} 0-1

[Event "DVM U20 2019"]
[Site "Braunschweig"]
[Date "2019.12.28"]
[Round "3"]
[White "Wiesner, Alexander"]
[Black "Grimm, Ling Leander"]
[Result "1-0"]
[ECO "B36"]
[WhiteElo "1960"]
[BlackElo "1777"]
[Annotator "NA RC"]
[PlyCount "81"]
[EventDate "2019.12.27"]
[EventType "team-tourn"]
[EventRounds "7"]
[EventCountry "GER"]
[SourceTitle "playchess.com"]
[Source "ChessBase"]
[SourceQuality "1"]
[WhiteTeam "Karlsruher SF"]
[BlackTeam "SK Bebenhausen"]
[TimeControl "40/5400+30:1800+30"]

1. e4 {[%emt 0:00:00]} c5 {[%emt 0:00:00]} 2. Nf3 {[%emt 0:00:00]} Nc6 {[%emt 0:00:09]} 3. d4 {[%emt 0:00:00]} cxd4 {[%emt 0:00:11]} 4. Nxd4 {[%emt 0:00:00]} g6 {[%emt 0:00:21]} 5. c4 {[%emt 0:00:05]} Nf6 {[%emt 0:00:18]} 6. Nc3 {[%emt 0:00:06]} Nxd4 {[%emt 0:00:15]} 7. Qxd4 {[%emt 0:00:05]} d6 {[%emt 0:00:42]} 8. Be3 {[%emt 0:00:38]} Bg7 {[%emt 0:00:40]} 9. f3 {[%emt 0:00:25]} O-O {[%emt 0:00:45]} 10. Qd2 {[%emt 0:00:05] unterminated} a5 {[%emt 0:04:05] unterminated} 11. Na4 {[%emt 0:01:41] unterminated} Nd7 {[%emt 0:09:37] unterminated} 12. O-O-O $14 {[%emt 0:14:21]} b6 {[%emt 0:30:55]} 13. Bh6 Nc5 {[%emt 0:13:15]} 14. Nc3 {[%emt 0:21:29]} Be6 {[%emt 0:05:49]} 15. h4 {[%emt 0:07:08]} Nd7 {[%emt 0:02:42]} 16. h5 {[%emt 0:02:19]} Nf6 {[%emt 0:03:16]} 17. hxg6 {[%emt 0:00:30]} fxg6 {[%emt 0:00:44]} 18. Bxg7 {[%emt 0:02:23]} Kxg7 {[%emt 0:00:10]} 19. Qh6+ {[%emt 0:03:07]} Kf7 {[%emt 0:00:17]} 20. e5 {[%emt 0:01:43]} Ng8 {[%emt 0:06:37]} 21. Qxh7+ {[%emt 0:02:01]} Ke8 {[%emt 0:00:15]} 22. c5 {[%emt 0:13:56]} Qc8 {[%emt 0:11:36]} 23. Qxg6+ {[%emt 0:02:10]} Kd7 {[%emt 0:02:38]} 24. Bb5+ {[%emt 0:03:52]} Kc7 {[%emt 0:00:30]} 25. exd6+ {[%emt 0:00:56]} Kb8 {[%emt 0:01:05]} 26. d7 {[%emt 0:01:25]} Bxd7 {[%emt 0:01:03]} 27. Qxb6+ {[%emt 0:02:34]} Qb7 {[%emt 0:00:09]} 28. Rxd7 {[%emt 0:00:18]} Qxb6 {[%emt 0:00:51]} 29. cxb6 {[%emt 0:00:06]} Nf6 {[%emt 0:00:22]} 30. Rxe7 {[%emt 0:00:15]} a4 {[%emt 0:00:24]} 31. Rd1 {[%emt 0:01:07]} Rc8 {[%emt 0:00:54]} 32. Rf7 {[%emt 0:00:25]} Ra5 {[%emt 0:00:48]} 33. Bd7 {[%emt 0:01:20]} Nxd7 {[%emt 0:01:22]} 34. Rdxd7 {[%emt 0:00:04]} a3 {[%emt 0:00:19]} 35. Rb7+ {[%emt 0:00:21]} Ka8 {[%emt 0:00:09]} 36. Ra7+ {[%emt 0:00:09]} Rxa7 {[%emt 0:00:07]} 37. Rxa7+ {[%emt 0:00:08]} Kb8 {[%emt 0:00:07]} 38. Rxa3 {[%emt 0:00:16]} Kb7 {[%emt 0:00:19]} 39. Rb3 {[%emt 0:00:03]} Rc6 {[%emt 0:00:37]} 40. Kd2 {[%emt 0:00:13] normal} Rxb6 {[%emt 0:00:50]} 41. Rxb6+ {[%emt 0:30:12] normal} 1-0